[Event "*** Titled Tuesday Blitz"]
[Site "Chess.com"]
[Date "2020.04.21"]
[Round "7"]
[White "pgradalski"]
[Black "ChadBiryani"]
[Result "0-1"]
[WhiteElo "2220"]
[BlackElo "2370"]
[TimeControl "180+1"]
[EndTime "11:22:14 PDT"]
[Termination "ChadBiryani won on time"]

1. e4 {[%clk 0:03:00.9]} 1... c5 {[%clk 0:02:59.5]} 2. c3 {[%clk 0:03:00.5]}
2... d5 {[%clk 0:02:59.3]} 3. exd5 {[%clk 0:02:59.4]} 3... Nf6 {[%clk
0:02:59.7]} 4. d4 {[%clk 0:02:54.3]} 4... cxd4 {[%clk 0:02:58]} 5. Qxd4 {[%clk
0:02:47.5]} 5... Qxd5 {[%clk 0:02:49.8]} 6. Nf3 {[%clk 0:02:40.6]} 6... Nc6
{[%clk 0:02:48.4]} 7. Qxd5 {[%clk 0:02:34.8]} 7... Nxd5 {[%clk 0:02:49.3]} 8.
Bc4 {[%clk 0:02:33]} 8... Nf6 {[%clk 0:02:45.8]} 9. O-O {[%clk 0:02:27.3]} 9...
e6 {[%clk 0:02:34.6]} 10. Bf4 {[%clk 0:02:18.1]} 10... Be7 {[%clk 0:02:33.7]}
11. Na3 {[%clk 0:02:10.4]} 11... a6 {[%clk 0:02:24.2]} 12. Nc2 {[%clk 0:02:04]}
12... O-O {[%clk 0:02:23.2]} 13. Rad1 {[%clk 0:02:01.5]} 13... b5 {[%clk
0:02:22.6]} 14. Bb3 {[%clk 0:02:00.8]} 14... Bb7 {[%clk 0:02:21.9]} 15. Ncd4
{[%clk 0:01:45.2]} 15... Na5 {[%clk 0:02:19.2]} 16. Ne5 {[%clk 0:01:29.8]} 16...
Nxb3 {[%clk 0:02:01.8]} 17. Nxb3 {[%clk 0:01:23.9]} 17... Rfd8 {[%clk
0:01:56.3]} 18. Be3 {[%clk 0:01:18.2]} 18... Nd5 {[%clk 0:01:51.8]} 19. Bc5
{[%clk 0:01:14]} 19... Bf6 {[%clk 0:01:47.4]} 20. Ng4 {[%clk 0:01:07.6]} 20...
Bg5 {[%clk 0:01:25.4]} 21. Na5 {[%clk 0:01:06.3]} 21... Bc8 {[%clk 0:00:28]} 22.
Ne5 {[%clk 0:01:05.6]} 22... Bf6 {[%clk 0:00:22.3]} 23. Nec6 {[%clk 0:00:46.8]}
23... Re8 {[%clk 0:00:22.5]} 24. Bd4 {[%clk 0:00:31.6]} 24... Bg5 {[%clk
0:00:19.9]} 25. c4 {[%clk 0:00:20.3]} 25... bxc4 {[%clk 0:00:19.7]} 26. Nxc4
{[%clk 0:00:19.7]} 26... Bd7 {[%clk 0:00:19.8]} 27. N4e5 {[%clk 0:00:17.7]}
27... Bc8 {[%clk 0:00:15.5]} 28. Na5 {[%clk 0:00:12.4]} 28... Rb8 {[%clk
0:00:11.4]} 29. b3 {[%clk 0:00:11.1]} 29... Rb5 {[%clk 0:00:10.1]} 30. Nec6
{[%clk 0:00:10.1]} 30... Bd7 {[%clk 0:00:08.6]} 31. a4 {[%clk 0:00:09]} 31...
Bxc6 {[%clk 0:00:05.9]} 32. axb5 {[%clk 0:00:07.1]} 32... Bxb5 {[%clk
0:00:06.8]} 33. Rfe1 {[%clk 0:00:06.9]} 33... h6 {[%clk 0:00:05.9]} 34. Bc5
{[%clk 0:00:04.6]} 34... Nc3 {[%clk 0:00:04.9]} 35. Rd6 {[%clk 0:00:02.4]} 35...
Be7 {[%clk 0:00:03.4]} 0-1

[Event "*** Titled Tuesday Blitz"]
[Site "Chess.com"]
[Date "2020.04.21"]
[Round "7"]
[White "XiaoKangZhong"]
[Black "Kaua18"]
[Result "1-0"]
[WhiteElo "2366"]
[BlackElo "2214"]
[TimeControl "180+1"]
[EndTime "11:22:15 PDT"]
[Termination "XiaoKangZhong won by checkmate"]

1. e4 {[%clk 0:03:00.9]} 1... c5 {[%clk 0:02:59.1]} 2. c3 {[%clk 0:03:01]} 2...
Nc6 {[%clk 0:02:59.5]} 3. d4 {[%clk 0:03:00.9]} 3... cxd4 {[%clk 0:02:59.7]} 4.
cxd4 {[%clk 0:03:01.8]} 4... d5 {[%clk 0:02:59.4]} 5. e5 {[%clk 0:03:01.9]} 5...
Bf5 {[%clk 0:02:56.6]} 6. Nc3 {[%clk 0:03:00.5]} 6... e6 {[%clk 0:02:52.7]} 7.
Bd3 {[%clk 0:02:53]} 7... Bxd3 {[%clk 0:02:48]} 8. Qxd3 {[%clk 0:02:53.9]} 8...
Nge7 {[%clk 0:02:47.9]} 9. Nf3 {[%clk 0:02:53.6]} 9... Ng6 {[%clk 0:02:47.9]}
10. O-O {[%clk 0:02:52.5]} 10... Be7 {[%clk 0:02:48.2]} 11. g3 {[%clk 0:02:51]}
11... a6 {[%clk 0:02:45.9]} 12. Be3 {[%clk 0:02:47.6]} 12... b5 {[%clk
0:02:45.6]} 13. Rac1 {[%clk 0:02:46.9]} 13... Rc8 {[%clk 0:02:45.4]} 14. a3
{[%clk 0:02:33.8]} 14... Na5 {[%clk 0:02:41.7]} 15. Ne2 {[%clk 0:02:32.4]} 15...
Nc4 {[%clk 0:02:39.2]} 16. b4 {[%clk 0:02:25.7]} 16... Qb6 {[%clk 0:02:28.7]}
17. Kg2 {[%clk 0:02:20.9]} 17... O-O {[%clk 0:02:28.3]} 18. h4 {[%clk
0:02:20.3]} 18... Rfd8 {[%clk 0:02:23.4]} 19. h5 {[%clk 0:02:12.1]} 19... Nf8
{[%clk 0:02:23.2]} 20. g4 {[%clk 0:02:12]} 20... a5 {[%clk 0:02:17.7]} 21. g5
{[%clk 0:02:01.5]} 21... axb4 {[%clk 0:02:15.3]} 22. axb4 {[%clk 0:02:02.4]}
22... Bxb4 {[%clk 0:02:14.8]} 23. Nf4 {[%clk 0:01:53]} 23... Be7 {[%clk
0:01:46.8]} 24. g6 {[%clk 0:01:49.1]} 24... b4 {[%clk 0:01:32.9]} 25. gxh7+
{[%clk 0:01:32.9]} 25... Nxh7 {[%clk 0:01:32.3]} 26. h6 {[%clk 0:01:33.5]} 26...
g5 {[%clk 0:00:47.7]} 27. Nh5 {[%clk 0:01:22.6]} 27... Kh8 {[%clk 0:00:42.7]}
28. Kh2 {[%clk 0:00:27.5]} 28... Rg8 {[%clk 0:00:40]} 29. Ng7 {[%clk 0:00:26.7]}
29... b3 {[%clk 0:00:32]} 30. Rg1 {[%clk 0:00:24.6]} 30... b2 {[%clk 0:00:32.2]}
31. Rb1 {[%clk 0:00:24.5]} 31... Qd8 {[%clk 0:00:18.1]} 32. Nd2 {[%clk
0:00:22.2]} 32... Nxd2 {[%clk 0:00:17.6]} 33. Qxd2 {[%clk 0:00:21.8]} 33... Rxg7
{[%clk 0:00:17.8]} 34. hxg7+ {[%clk 0:00:21.8]} 34... Kxg7 {[%clk 0:00:18.7]}
35. Rxb2 {[%clk 0:00:22.2]} 35... Qh8 {[%clk 0:00:15.8]} 36. Kg2 {[%clk
0:00:22.1]} 36... Nf8 {[%clk 0:00:15.5]} 37. Rh1 {[%clk 0:00:22.5]} 37... Qg8
{[%clk 0:00:15.1]} 38. Bxg5 {[%clk 0:00:20.7]} 38... Ng6 {[%clk 0:00:15.3]} 39.
Bh6+ {[%clk 0:00:19]} 39... Kh8 {[%clk 0:00:09.7]} 40. Bg5+ {[%clk 0:00:17.5]}
40... Kg7 {[%clk 0:00:09.6]} 41. Bxe7 {[%clk 0:00:17.5]} 41... Nxe7 {[%clk
0:00:10.5]} 42. Qh6# {[%clk 0:00:16.7]} 1-0

[Event "*** Titled Tuesday Blitz"]
[Site "Chess.com"]
[Date "2020.04.21"]
[Round "7"]
[White "Incognito_Knight"]
[Black "Infernal_XaM"]
[Result "0-1"]
[WhiteElo "2731"]
[BlackElo "2944"]
[TimeControl "180+1"]
[EndTime "11:22:18 PDT"]
[Termination "Infernal_XaM won on time"]

1. d4 {[%clk 0:03:00.8]} 1... e6 {[%clk 0:02:59.5]} 2. c4 {[%clk 0:03:00.7]}
2... b6 {[%clk 0:02:59.9]} 3. e4 {[%clk 0:02:58.4]} 3... Bb7 {[%clk 0:03:00]} 4.
Bd3 {[%clk 0:02:55.1]} 4... Nf6 {[%clk 0:02:49.5]} 5. Nc3 {[%clk 0:02:49.7]}
5... Bb4 {[%clk 0:02:49]} 6. Bg5 {[%clk 0:02:40.7]} 6... h6 {[%clk 0:02:46.7]}
7. Bxf6 {[%clk 0:02:40.5]} 7... Qxf6 {[%clk 0:02:46.5]} 8. Nf3 {[%clk
0:02:39.1]} 8... c5 {[%clk 0:02:43.5]} 9. e5 {[%clk 0:02:21]} 9... Bxf3 {[%clk
0:02:40.9]} 10. exf6 {[%clk 0:02:08.3]} 10... Bxd1 {[%clk 0:02:40.4]} 11. fxg7
{[%clk 0:02:07.8]} 11... Rg8 {[%clk 0:02:40.3]} 12. Kxd1 {[%clk 0:01:55.9]}
12... cxd4 {[%clk 0:02:35.4]} 13. Nb5 {[%clk 0:01:54.3]} 13... Na6 {[%clk
0:02:34.3]} 14. Be4 {[%clk 0:01:41.7]} 14... O-O-O {[%clk 0:02:21.9]} 15. a3
{[%clk 0:01:34]} 15... Be7 {[%clk 0:02:20.5]} 16. Nxa7+ {[%clk 0:01:21.1]} 16...
Kb8 {[%clk 0:02:19.8]} 17. Nb5 {[%clk 0:01:22]} 17... Nc5 {[%clk 0:02:13.6]} 18.
Bf3 {[%clk 0:01:20.2]} 18... Rxg7 {[%clk 0:01:59.5]} 19. Nxd4 {[%clk 0:01:11.3]}
19... Bf6 {[%clk 0:01:58.9]} 20. Nb5 {[%clk 0:01:07.6]} 20... Bxb2 {[%clk
0:01:54.9]} 21. Rb1 {[%clk 0:01:07.3]} 21... Bf6 {[%clk 0:01:52.4]} 22. Ke2
{[%clk 0:01:04.5]} 22... Rg5 {[%clk 0:01:43]} 23. Rhd1 {[%clk 0:01:03.1]} 23...
Be7 {[%clk 0:01:32.6]} 24. Nd6 {[%clk 0:00:50.3]} 24... Na4 {[%clk 0:01:25.2]}
25. Nxf7 {[%clk 0:00:41.5]} 25... Nc3+ {[%clk 0:01:25.1]} 26. Kd3 {[%clk
0:00:22.4]} 26... Nxd1 {[%clk 0:01:10.9]} 27. Nxg5 {[%clk 0:00:18]} 27... Nxf2+
{[%clk 0:00:53.1]} 28. Ke2 {[%clk 0:00:17.5]} 28... hxg5 {[%clk 0:00:52.8]} 29.
Kxf2 {[%clk 0:00:07.6]} 29... Kc7 {[%clk 0:00:51.2]} 30. Rb3 {[%clk 0:00:06.3]}
30... Rf8 {[%clk 0:00:49.4]} 31. Ke2 {[%clk 0:00:06.1]} 31... Rf5 {[%clk
0:00:48.9]} 32. g3 {[%clk 0:00:03.9]} 32... Ra5 {[%clk 0:00:47.1]} 33. Be4
{[%clk 0:00:02.7]} 33... Ra4 {[%clk 0:00:39.4]} 34. Bd3 {[%clk 0:00:02.2]} 34...
Bxa3 {[%clk 0:00:38]} 35. h4 {[%clk 0:00:02.6]} 35... gxh4 {[%clk 0:00:33.5]}
36. gxh4 {[%clk 0:00:03.5]} 36... Be7 {[%clk 0:00:32.7]} 37. h5 {[%clk
0:00:03.8]} 37... Ra2+ {[%clk 0:00:32.2]} 38. Kf3 {[%clk 0:00:04.3]} 38... Rh2
{[%clk 0:00:32.2]} 39. Rb5 {[%clk 0:00:03.2]} 39... Bc5 {[%clk 0:00:27.4]} 40.
Bg6 {[%clk 0:00:02.8]} 40... Rh4 {[%clk 0:00:27.3]} 0-1

[Event "*** Titled Tuesday Blitz"]
[Site "Chess.com"]
[Date "2020.04.21"]
[Round "7"]
[White "Quattroporte300"]
[Black "OhanyanEminChess"]
[Result "0-1"]
[WhiteElo "2276"]
[BlackElo "2503"]
[TimeControl "180+1"]
[EndTime "11:22:18 PDT"]
[Termination "OhanyanEminChess won on time"]

1. e4 {[%clk 0:03:00.9]} 1... e5 {[%clk 0:02:59.1]} 2. Nf3 {[%clk 0:03:00.2]}
2... Nc6 {[%clk 0:02:58.2]} 3. Bb5 {[%clk 0:02:59.3]} 3... f5 {[%clk 0:02:55]}
4. d3 {[%clk 0:02:54.3]} 4... fxe4 {[%clk 0:02:54.1]} 5. dxe4 {[%clk 0:02:54.2]}
5... Nf6 {[%clk 0:02:52.9]} 6. Nc3 {[%clk 0:02:51.2]} 6... Bb4 {[%clk
0:02:52.3]} 7. O-O {[%clk 0:02:48.2]} 7... Bxc3 {[%clk 0:02:50.9]} 8. bxc3
{[%clk 0:02:46.8]} 8... d6 {[%clk 0:02:47.2]} 9. Re1 {[%clk 0:02:25.4]} 9... O-O
{[%clk 0:02:44.9]} 10. Bg5 {[%clk 0:02:22.2]} 10... Be6 {[%clk 0:02:40.3]} 11.
Qd3 {[%clk 0:02:13.7]} 11... Qe7 {[%clk 0:02:38]} 12. h3 {[%clk 0:01:49.2]}
12... h6 {[%clk 0:02:34.5]} 13. Bd2 {[%clk 0:01:18.8]} 13... a6 {[%clk
0:02:28.5]} 14. Ba4 {[%clk 0:01:14]} 14... g5 {[%clk 0:02:24.1]} 15. Bb3 {[%clk
0:01:12.5]} 15... Nh5 {[%clk 0:02:22.3]} 16. Rab1 {[%clk 0:00:52]} 16... b5
{[%clk 0:02:16.6]} 17. a4 {[%clk 0:00:47.1]} 17... Rab8 {[%clk 0:02:06.9]} 18.
Bd5 {[%clk 0:00:41.5]} 18... Nd8 {[%clk 0:01:59.6]} 19. axb5 {[%clk 0:00:40.5]}
19... axb5 {[%clk 0:02:00.1]} 20. Rxb5 {[%clk 0:00:37.6]} 20... Rxb5 {[%clk
0:02:01]} 21. Qxb5 {[%clk 0:00:35.3]} 21... Kh7 {[%clk 0:01:53.6]} 22. Qd3
{[%clk 0:00:31]} 22... Nf4 {[%clk 0:01:49.4]} 23. Bxf4 {[%clk 0:00:29.1]} 23...
Rxf4 {[%clk 0:01:50.3]} 24. Rb1 {[%clk 0:00:21.3]} 24... c6 {[%clk 0:01:40.9]}
25. Bxe6 {[%clk 0:00:19.5]} 25... Nxe6 {[%clk 0:01:41.8]} 26. Rb8 {[%clk
0:00:14.9]} 26... Rf8 {[%clk 0:01:20.6]} 27. Rb6 {[%clk 0:00:12.1]} 27... Qc7
{[%clk 0:01:13.4]} 28. Qa6 {[%clk 0:00:09.5]} 28... Nc5 {[%clk 0:01:09.5]} 29.
Qa5 {[%clk 0:00:08.2]} 29... Nxe4 {[%clk 0:00:45.6]} 30. Ra6 {[%clk 0:00:05.3]}
30... Qxa5 {[%clk 0:00:45.1]} 31. Rxa5 {[%clk 0:00:05.4]} 31... Nxc3 {[%clk
0:00:44.5]} 32. Ra7+ {[%clk 0:00:03.8]} 32... Kg6 {[%clk 0:00:44.2]} 33. Rc7
{[%clk 0:00:04]} 33... c5 {[%clk 0:00:37.8]} 34. Rc6 {[%clk 0:00:04.2]} 34...
Rf6 {[%clk 0:00:38.4]} 35. Kf1 {[%clk 0:00:03.9]} 35... e4 {[%clk 0:00:34.8]}
36. Nd2 {[%clk 0:00:02.6]} 36... e3 {[%clk 0:00:29.2]} 37. Nf3 {[%clk
0:00:02.7]} 37... e2+ {[%clk 0:00:16.7]} 38. Ke1 {[%clk 0:00:02.7]} 38... h5
{[%clk 0:00:17.4]} 39. g3 {[%clk 0:00:01.3]} 39... Rxf3 {[%clk 0:00:16.6]} 0-1

[Event "*** Titled Tuesday Blitz"]
[Site "Chess.com"]
[Date "2020.04.21"]
[Round "7"]
[White "mrsavic77"]
[Black "AnishGiri"]
[Result "1-0"]
[WhiteElo "2769"]
[BlackElo "3003"]
[TimeControl "180+1"]
[EndTime "11:22:19 PDT"]
[Termination "mrsavic77 won by resignation"]

1. e4 {[%clk 0:03:00.5]} 1... c5 {[%clk 0:02:58.5]} 2. c3 {[%clk 0:03:00.7]}
2... Nf6 {[%clk 0:02:57.6]} 3. e5 {[%clk 0:03:01.2]} 3... Nd5 {[%clk 0:02:58.2]}
4. Nf3 {[%clk 0:03:01.8]} 4... d6 {[%clk 0:02:58.3]} 5. d4 {[%clk 0:03:02]} 5...
cxd4 {[%clk 0:02:56.3]} 6. Qxd4 {[%clk 0:02:59.2]} 6... e6 {[%clk 0:02:48.5]} 7.
exd6 {[%clk 0:02:58.5]} 7... Qxd6 {[%clk 0:02:38.8]} 8. Qe4 {[%clk 0:02:52.8]}
8... Be7 {[%clk 0:02:36.5]} 9. Na3 {[%clk 0:02:48.2]} 9... O-O {[%clk
0:02:35.2]} 10. Bd3 {[%clk 0:02:45.3]} 10... Nf6 {[%clk 0:02:33.8]} 11. Qe2
{[%clk 0:02:45.7]} 11... Nbd7 {[%clk 0:02:17.6]} 12. O-O {[%clk 0:02:42.8]}
12... b6 {[%clk 0:02:17.8]} 13. Rd1 {[%clk 0:02:39.2]} 13... Qb8 {[%clk
0:02:17.8]} 14. Nc4 {[%clk 0:02:33.7]} 14... Bb7 {[%clk 0:02:17.3]} 15. Nfe5
{[%clk 0:02:27.1]} 15... Nxe5 {[%clk 0:02:04.9]} 16. Nxe5 {[%clk 0:02:26.5]}
16... Rd8 {[%clk 0:01:57.1]} 17. Bg5 {[%clk 0:02:21.9]} 17... h6 {[%clk
0:01:51.4]} 18. Bh4 {[%clk 0:02:21.7]} 18... Qc7 {[%clk 0:01:47]} 19. Bg3 {[%clk
0:02:19.8]} 19... Qc5 {[%clk 0:01:45.6]} 20. Bc2 {[%clk 0:02:15]} 20... Rxd1+
{[%clk 0:01:44.8]} 21. Rxd1 {[%clk 0:02:15.5]} 21... Rd8 {[%clk 0:01:45]} 22.
Rxd8+ {[%clk 0:02:14.5]} 22... Bxd8 {[%clk 0:01:45.9]} 23. Qc4 {[%clk
0:02:10.9]} 23... Be7 {[%clk 0:01:44]} 24. Qxc5 {[%clk 0:02:09.7]} 24... Bxc5
{[%clk 0:01:42.7]} 25. Nd3 {[%clk 0:02:10.4]} 25... Be7 {[%clk 0:01:41.7]} 26.
f3 {[%clk 0:02:07.1]} 26... Kf8 {[%clk 0:01:41.7]} 27. Bf2 {[%clk 0:02:06.8]}
27... g5 {[%clk 0:01:41.5]} 28. Ne5 {[%clk 0:02:06.2]} 28... Bd6 {[%clk
0:01:40.3]} 29. Bd4 {[%clk 0:02:05.7]} 29... Ke7 {[%clk 0:01:40.2]} 30. Kf2
{[%clk 0:02:04.4]} 30... h5 {[%clk 0:01:40.6]} 31. Nc4 {[%clk 0:02:03.8]} 31...
Bxh2 {[%clk 0:01:38.2]} 32. a4 {[%clk 0:01:58.4]} 32... h4 {[%clk 0:01:36.6]}
33. a5 {[%clk 0:01:56.5]} 33... b5 {[%clk 0:01:35]} 34. Bc5+ {[%clk 0:01:55.6]}
34... Kd7 {[%clk 0:01:34.7]} 35. Nd2 {[%clk 0:01:53.1]} 35... a6 {[%clk
0:01:34.8]} 36. Be3 {[%clk 0:01:48.6]} 36... Bf4 {[%clk 0:01:20.6]} 37. Bxf4
{[%clk 0:01:45]} 37... gxf4 {[%clk 0:01:20.9]} 38. c4 {[%clk 0:01:45.7]} 38...
b4 {[%clk 0:01:09.6]} 39. Kg1 {[%clk 0:01:41.8]} 39... h3 {[%clk 0:00:50.2]} 40.
gxh3 {[%clk 0:01:39.6]} 40... Kd6 {[%clk 0:00:50.8]} 41. Kf2 {[%clk 0:01:36.8]}
41... Kc5 {[%clk 0:00:49.9]} 42. Bd3 {[%clk 0:01:32.4]} 42... Kd4 {[%clk
0:00:49.8]} 43. Be2 {[%clk 0:01:30.1]} 43... Ke5 {[%clk 0:00:49.3]} 44. Nb3
{[%clk 0:01:28]} 44... Nd7 {[%clk 0:00:49]} 45. Nc1 {[%clk 0:01:24.7]} 45... Kd6
{[%clk 0:00:45.4]} 46. Nd3 {[%clk 0:01:21.1]} 46... e5 {[%clk 0:00:44.2]} 47.
Nxb4 {[%clk 0:01:19]} 47... f5 {[%clk 0:00:44.8]} 48. h4 {[%clk 0:01:17]} 48...
e4 {[%clk 0:00:44.9]} 49. h5 {[%clk 0:01:15]} 49... Ke5 {[%clk 0:00:38.5]} 50.
Nd5 {[%clk 0:01:11.3]} 50... Nf6 {[%clk 0:00:33.2]} 51. h6 {[%clk 0:01:03.3]}
51... e3+ {[%clk 0:00:31.3]} 52. Ke1 {[%clk 0:00:56]} 52... Nh7 {[%clk
0:00:31.7]} 53. b4 {[%clk 0:00:52.6]} 53... Ng5 {[%clk 0:00:32.3]} 54. Kf1
{[%clk 0:00:49.1]} 54... Nh7 {[%clk 0:00:32]} 55. Kg2 {[%clk 0:00:47.2]} 55...
Ng5 {[%clk 0:00:32.6]} 56. Nc7 {[%clk 0:00:42.9]} 56... Kd6 {[%clk 0:00:30]} 57.
Nxa6 {[%clk 0:00:39.1]} 57... Nxf3 {[%clk 0:00:23.1]} 58. Bxf3 {[%clk
0:00:35.3]} 1-0

[Event "*** Titled Tuesday Blitz"]
[Site "Chess.com"]
[Date "2020.04.21"]
[Round "7"]
[White "chidori_boruto"]
[Black "LizaSolovyova"]
[Result "0-1"]
[WhiteElo "2618"]
[BlackElo "2501"]
[TimeControl "180+1"]
[EndTime "11:22:19 PDT"]
[Termination "LizaSolovyova won on time"]

1. d4 {[%clk 0:03:00.8]} 1... f5 {[%clk 0:02:59.6]} 2. Nf3 {[%clk 0:02:59.7]}
2... Nf6 {[%clk 0:02:59.8]} 3. Bf4 {[%clk 0:02:59.8]} 3... e6 {[%clk 0:03:00.3]}
4. e3 {[%clk 0:03:00.3]} 4... Be7 {[%clk 0:03:00.6]} 5. h3 {[%clk 0:03:00.6]}
5... O-O {[%clk 0:02:55.1]} 6. Be2 {[%clk 0:03:01]} 6... d6 {[%clk 0:02:53.3]}
7. O-O {[%clk 0:03:01.4]} 7... Qe8 {[%clk 0:02:52.3]} 8. c4 {[%clk 0:03:01.7]}
8... b6 {[%clk 0:02:48.3]} 9. Nc3 {[%clk 0:03:01.8]} 9... Bb7 {[%clk 0:02:48.1]}
10. Rc1 {[%clk 0:03:02.3]} 10... Ne4 {[%clk 0:02:45]} 11. Nxe4 {[%clk
0:03:01.6]} 11... fxe4 {[%clk 0:02:43.1]} 12. Nd2 {[%clk 0:03:01.8]} 12... Nd7
{[%clk 0:02:42.4]} 13. Bh2 {[%clk 0:03:02]} 13... Qg6 {[%clk 0:02:35.9]} 14. b4
{[%clk 0:02:56.7]} 14... c5 {[%clk 0:02:33]} 15. dxc5 {[%clk 0:02:44.8]} 15...
dxc5 {[%clk 0:02:32.2]} 16. Nb3 {[%clk 0:02:35.9]} 16... Rad8 {[%clk 0:02:29.7]}
17. Bc7 {[%clk 0:02:34.3]} 17... Ne5 {[%clk 0:02:24.9]} 18. Bxd8 {[%clk
0:02:27]} 18... Rxd8 {[%clk 0:02:25.8]} 19. Qc2 {[%clk 0:02:22.2]} 19... cxb4
{[%clk 0:02:19.6]} 20. Rcd1 {[%clk 0:02:18.6]} 20... Rd3 {[%clk 0:02:17.6]} 21.
f4 {[%clk 0:01:53]} 21... Rc3 {[%clk 0:02:06.4]} 22. Qd2 {[%clk 0:01:43.4]}
22... Nf3+ {[%clk 0:01:56.1]} 23. Bxf3 {[%clk 0:01:41]} 23... exf3 {[%clk
0:01:56.5]} 24. Rf2 {[%clk 0:01:36.4]} 24... Bh4 {[%clk 0:01:54.2]} 25. Rdf1
{[%clk 0:01:29.6]} 25... h6 {[%clk 0:01:42.9]} 26. Rxf3 {[%clk 0:01:23.5]} 26...
Bxf3 {[%clk 0:01:37.6]} 27. Rxf3 {[%clk 0:01:23]} 27... Rc2 {[%clk 0:01:38.1]}
28. f5 {[%clk 0:01:22.8]} 28... Rxd2 {[%clk 0:01:33.2]} 29. fxg6 {[%clk
0:01:22.8]} 29... Rxa2 {[%clk 0:01:33]} 30. Rf7 {[%clk 0:01:18.6]} 30... Bg5
{[%clk 0:01:28.8]} 31. Kh2 {[%clk 0:01:06.5]} 31... Bxe3 {[%clk 0:01:27.4]} 32.
Kg3 {[%clk 0:01:00]} 32... a5 {[%clk 0:01:21.6]} 33. Re7 {[%clk 0:00:55.2]}
33... Kf8 {[%clk 0:01:19.7]} 34. Rxe6 {[%clk 0:00:55.2]} 34... Bf2+ {[%clk
0:01:18.8]} 35. Kf3 {[%clk 0:00:52.8]} 35... Bc5 {[%clk 0:01:16.7]} 36. Nc1
{[%clk 0:00:33.7]} 36... b3 {[%clk 0:01:02.9]} 37. Nd3 {[%clk 0:00:17]} 37... b2
{[%clk 0:00:57.7]} 38. Ne5 {[%clk 0:00:16.1]} 38... Ra3+ {[%clk 0:00:54.7]} 39.
Kf4 {[%clk 0:00:11.7]} 39... Re3 {[%clk 0:00:53.2]} 40. Nd7+ {[%clk 0:00:03.8]}
40... Kg8 {[%clk 0:00:53]} 41. Rc6 {[%clk 0:00:03.8]} 41... Re8 {[%clk
0:00:50.5]} 0-1

[Event "*** Titled Tuesday Blitz"]
[Site "Chess.com"]
[Date "2020.04.21"]
[Round "7"]
[White "quesfr"]
[Black "HashtagChess"]
[Result "1-0"]
[WhiteElo "2196"]
[BlackElo "1660"]
[TimeControl "180+1"]
[EndTime "11:22:20 PDT"]
[Termination "quesfr won on time"]

1. e4 {[%clk 0:03:00.9]} 1... c5 {[%clk 0:02:53.9]} 2. c3 {[%clk 0:03:00.5]}
2... d5 {[%clk 0:02:38.2]} 3. exd5 {[%clk 0:03:01.4]} 3... Qxd5 {[%clk
0:02:37.8]} 4. d4 {[%clk 0:03:01.9]} 4... cxd4 {[%clk 0:02:37]} 5. cxd4 {[%clk
0:03:02.8]} 5... e5 {[%clk 0:02:30.9]} 6. Nf3 {[%clk 0:02:59.4]} 6... e4 {[%clk
0:02:26.5]} 7. Nc3 {[%clk 0:02:45.1]} 7... Qa5 {[%clk 0:02:13.2]} 8. Ne5 {[%clk
0:02:34.5]} 8... Nc6 {[%clk 0:02:08.2]} 9. Bb5 {[%clk 0:02:29]} 9... Bb4 {[%clk
0:01:51.6]} 10. Bd2 {[%clk 0:01:55.4]} 10... Ne7 {[%clk 0:01:46.7]} 11. Bxc6+
{[%clk 0:01:06.7]} 11... Nxc6 {[%clk 0:01:44.4]} 12. Nxc6 {[%clk 0:01:04.5]}
12... bxc6 {[%clk 0:01:45.3]} 13. Nxe4 {[%clk 0:00:47.3]} 13... Ba6 {[%clk
0:01:36.8]} 14. a3 {[%clk 0:00:39.7]} 14... Bxd2+ {[%clk 0:01:29.7]} 15. Qxd2
{[%clk 0:00:40.6]} 15... Qd5 {[%clk 0:01:10.2]} 16. f3 {[%clk 0:00:28.7]} 16...
O-O {[%clk 0:01:06]} 17. Kf2 {[%clk 0:00:28.7]} 17... Rad8 {[%clk 0:01:03.2]}
18. Rhd1 {[%clk 0:00:26.5]} 18... f5 {[%clk 0:00:59.1]} 19. Nc5 {[%clk
0:00:23.4]} 19... Bc8 {[%clk 0:00:40.9]} 20. Qf4 {[%clk 0:00:19.6]} 20... Rfe8
{[%clk 0:00:32.7]} 21. Rd2 {[%clk 0:00:19.4]} 21... Qc4 {[%clk 0:00:28.6]} 22.
Rad1 {[%clk 0:00:18.2]} 22... Rd5 {[%clk 0:00:23.8]} 23. h4 {[%clk 0:00:14.2]}
23... Red8 {[%clk 0:00:20.6]} 24. Kg3 {[%clk 0:00:11.7]} 24... g6 {[%clk
0:00:15.6]} 25. h5 {[%clk 0:00:11.6]} 25... Qb5 {[%clk 0:00:13.7]} 26. hxg6
{[%clk 0:00:10.6]} 26... hxg6 {[%clk 0:00:14.6]} 27. Qh6 {[%clk 0:00:10.7]}
27... R5d6 {[%clk 0:00:13.2]} 28. Rh1 {[%clk 0:00:10.5]} 28... Kf7 {[%clk
0:00:09.6]} 29. Qh7+ {[%clk 0:00:09.9]} 29... Kf6 {[%clk 0:00:09.7]} 30. Rh6
{[%clk 0:00:04.7]} 30... f4+ {[%clk 0:00:09]} 31. Kh2 {[%clk 0:00:04.1]} 31...
Bf5 {[%clk 0:00:04.3]} 32. Ne4+ {[%clk 0:00:03.5]} 32... Bxe4 {[%clk 0:00:04.3]}
33. fxe4 {[%clk 0:00:03.8]} 33... Qg5 {[%clk 0:00:03.4]} 34. e5+ {[%clk
0:00:03]} 34... Ke6 {[%clk 0:00:01.5]} 35. Rxg6+ {[%clk 0:00:01.9]} 1-0